[Event "Late-Titled-Tuesday-Blitz-November-28-2023"]
[Site "Chess.com"]
[Date "2023.11.28"]
[Round "3"]
[White "Yurasova_Daria"]
[Black "zivicd"]
[Result "1-0"]
[WhiteElo "2476"]
[BlackElo "2327"]
[TimeControl "180+1"]
[EndTime "14:23:49 PST"]
[Termination "Yurasova_Daria won by resignation"]

1. e4 {[%clk 0:03:00.9]} 1... c6 {[%clk 0:02:37.1]} 2. d4 {[%clk 0:02:59.4]}
2... d5 {[%clk 0:02:38]} 3. e5 {[%clk 0:02:57.9]} 3... Bf5 {[%clk 0:02:37.4]} 4.
h4 {[%clk 0:02:58.3]} 4... h5 {[%clk 0:02:37.4]} 5. c4 {[%clk 0:02:57.6]} 5...
dxc4 {[%clk 0:02:31.8]} 6. Bxc4 {[%clk 0:02:51]} 6... e6 {[%clk 0:02:30.9]} 7.
Nc3 {[%clk 0:02:50.5]} 7... Nd7 {[%clk 0:02:29.4]} 8. Nge2 {[%clk 0:02:46.9]}
8... Ne7 {[%clk 0:02:28.2]} 9. Bg5 {[%clk 0:02:46.4]} 9... Qb6 {[%clk
0:02:18.6]} 10. Ng3 {[%clk 0:02:27.1]} 10... f6 {[%clk 0:02:13.1]} 11. exf6
{[%clk 0:02:20.2]} 11... gxf6 {[%clk 0:02:14]} 12. Nxf5 {[%clk 0:01:59.8]} 12...
Nxf5 {[%clk 0:02:05.3]} 13. Bxe6 {[%clk 0:01:55.4]} 13... Nxd4 {[%clk
0:01:37.1]} 14. Bxd7+ {[%clk 0:01:50.9]} 14... Kxd7 {[%clk 0:01:38]} 15. Bxf6
{[%clk 0:01:39.5]} 15... Re8+ {[%clk 0:01:37]} 16. Kf1 {[%clk 0:01:40.1]} 1-0

[Event "Late-Titled-Tuesday-Blitz-November-28-2023"]
[Site "Chess.com"]
[Date "2023.11.28"]
[Round "3"]
[White "Hasangatin_Ramil"]
[Black "elchacal664"]
[Result "1-0"]
[WhiteElo "2692"]
[BlackElo "2350"]
[TimeControl "180+1"]
[EndTime "14:24:33 PST"]
[Termination "Hasangatin_Ramil won by resignation"]

1. e4 {[%clk 0:03:00.9]} 1... c5 {[%clk 0:02:59.6]} 2. Nf3 {[%clk 0:03:01.3]}
2... d6 {[%clk 0:02:59.6]} 3. d4 {[%clk 0:03:01.2]} 3... cxd4 {[%clk 0:03:00.5]}
4. Qxd4 {[%clk 0:03:01.8]} 4... Nc6 {[%clk 0:02:59]} 5. Bb5 {[%clk 0:03:01.7]}
5... Bd7 {[%clk 0:02:58.5]} 6. Bxc6 {[%clk 0:03:02]} 6... Bxc6 {[%clk
0:02:58.4]} 7. Nc3 {[%clk 0:03:02.6]} 7... Nf6 {[%clk 0:02:54.6]} 8. Bg5 {[%clk
0:03:03.1]} 8... e6 {[%clk 0:02:51.2]} 9. O-O-O {[%clk 0:03:03.5]} 9... Be7
{[%clk 0:02:51.2]} 10. Rhe1 {[%clk 0:03:04]} 10... Qa5 {[%clk 0:02:48.7]} 11.
Nd5 {[%clk 0:03:02.5]} 11... Bxd5 {[%clk 0:02:37.8]} 12. exd5 {[%clk 0:03:01.9]}
12... e5 {[%clk 0:02:37.9]} 13. Nxe5 {[%clk 0:03:02.2]} 13... dxe5 {[%clk
0:02:31]} 14. Qxe5 {[%clk 0:03:02]} 14... O-O {[%clk 0:02:31.1]} 15. Qxe7 {[%clk
0:03:01.8]} 15... Rae8 {[%clk 0:02:27.4]} 16. Bxf6 {[%clk 0:02:44.2]} 16... Rxe7
{[%clk 0:02:25.8]} 17. Bxe7 {[%clk 0:02:44.4]} 17... Re8 {[%clk 0:02:26.1]} 18.
d6 {[%clk 0:02:34.7]} 18... f5 {[%clk 0:02:23.1]} 19. Kb1 {[%clk 0:02:29]} 19...
Kf7 {[%clk 0:02:21.8]} 20. d7 {[%clk 0:02:20.9]} 20... Rxe7 {[%clk 0:02:21.8]}
21. Rxe7+ {[%clk 0:02:19.1]} 21... Kxe7 {[%clk 0:02:22.4]} 22. d8=Q+ {[%clk
0:02:19.4]} 22... Qxd8 {[%clk 0:02:22.8]} 23. Rxd8 {[%clk 0:02:17.7]} 23... Kxd8
{[%clk 0:02:23.7]} 24. Kc1 {[%clk 0:02:16.9]} 24... Kd7 {[%clk 0:02:24.6]} 25.
Kd2 {[%clk 0:02:17.3]} 25... Kd6 {[%clk 0:02:25.3]} 26. Ke3 {[%clk 0:02:17.6]}
26... Kd5 {[%clk 0:02:26.2]} 27. Kf4 {[%clk 0:02:13.1]} 27... Ke6 {[%clk
0:02:25.7]} 28. h4 {[%clk 0:02:11.5]} 28... Kf6 {[%clk 0:02:25.6]} 29. f3 {[%clk
0:02:10]} 29... g6 {[%clk 0:02:26.1]} 30. g4 {[%clk 0:02:10]} 30... h6 {[%clk
0:02:27]} 31. gxf5 {[%clk 0:02:07.2]} 31... gxf5 {[%clk 0:02:23.7]} 32. h5
{[%clk 0:02:04.9]} 32... Ke6 {[%clk 0:02:22.5]} 33. Ke3 {[%clk 0:02:04.7]} 33...
Ke5 {[%clk 0:02:22.4]} 34. f4+ {[%clk 0:02:04.8]} 34... Kd5 {[%clk 0:02:20.7]}
35. Kd3 {[%clk 0:02:05]} 35... Kc5 {[%clk 0:02:16.6]} 36. c4 {[%clk 0:01:56.5]}
36... a5 {[%clk 0:02:15.9]} 37. Kc3 {[%clk 0:01:54.4]} 37... b6 {[%clk
0:02:13.6]} 38. b3 {[%clk 0:01:53.8]} 38... Kc6 {[%clk 0:01:34.2]} 39. Kd4
{[%clk 0:01:52.1]} 39... Kd6 {[%clk 0:01:34.5]} 40. a3 {[%clk 0:01:51.3]} 1-0

[Event "Late-Titled-Tuesday-Blitz-November-28-2023"]
[Site "Chess.com"]
[Date "2023.11.28"]
[Round "3"]
[White "FairChess_on_YouTube"]
[Black "GAZZAN_3000"]
[Result "1-0"]
[WhiteElo "3081"]
[BlackElo "2662"]
[TimeControl "180+1"]
[EndTime "14:24:44 PST"]
[Termination "FairChess_on_YouTube won by resignation"]

1. d4 {[%clk 0:03:00.9]} 1... Nf6 {[%clk 0:02:59.6]} 2. c4 {[%clk 0:03:00.9]}
2... c5 {[%clk 0:02:59.1]} 3. Nf3 {[%clk 0:02:59.7]} 3... cxd4 {[%clk
0:02:58.5]} 4. Nxd4 {[%clk 0:02:59.4]} 4... e6 {[%clk 0:02:59.1]} 5. Nc3 {[%clk
0:02:58.2]} 5... d5 {[%clk 0:02:59.1]} 6. Bf4 {[%clk 0:02:53.4]} 6... Be7 {[%clk
0:02:51.5]} 7. Ndb5 {[%clk 0:02:47.7]} 7... Na6 {[%clk 0:02:47.3]} 8. e4 {[%clk
0:02:40.7]} 8... Nxe4 {[%clk 0:02:37.7]} 9. Nxe4 {[%clk 0:02:40]} 9... dxe4
{[%clk 0:02:38]} 10. Qxd8+ {[%clk 0:02:33.4]} 10... Bxd8 {[%clk 0:02:32.5]} 11.
Nd6+ {[%clk 0:02:32.6]} 11... Ke7 {[%clk 0:02:32.8]} 12. Nxe4 {[%clk 0:02:26.7]}
12... Ba5+ {[%clk 0:02:32.8]} 13. Nd2 {[%clk 0:02:22.1]} 13... Nb4 {[%clk
0:02:27.7]} 14. O-O-O {[%clk 0:02:18.5]} 14... f6 {[%clk 0:01:50.3]} 15. Nb3
{[%clk 0:02:13.5]} 15... e5 {[%clk 0:01:41.4]} 16. Nxa5 {[%clk 0:02:06.5]} 16...
exf4 {[%clk 0:01:39.9]} 17. a3 {[%clk 0:01:57.7]} 17... Nc6 {[%clk 0:01:39.7]}
18. Nxc6+ {[%clk 0:01:57.8]} 18... bxc6 {[%clk 0:01:40.6]} 19. Be2 {[%clk
0:01:56]} 19... Be6 {[%clk 0:01:31.2]} 20. Rhe1 {[%clk 0:01:55.5]} 20... Rad8
{[%clk 0:01:27.2]} 21. Bg4 {[%clk 0:01:49.6]} 21... Rxd1+ {[%clk 0:01:22.1]} 22.
Kxd1 {[%clk 0:01:50.5]} 22... Rd8+ {[%clk 0:01:17.1]} 23. Kc2 {[%clk 0:01:49.9]}
23... f5 {[%clk 0:01:14.5]} 24. Bxf5 {[%clk 0:01:49.3]} 24... Kf6 {[%clk
0:01:13.7]} 25. Bxe6 {[%clk 0:01:47.3]} 25... Re8 {[%clk 0:01:14]} 26. Kc3
{[%clk 0:01:44.4]} 26... Rxe6 {[%clk 0:01:13.8]} 27. Rxe6+ {[%clk 0:01:45.2]}
27... Kxe6 {[%clk 0:01:14.7]} 28. Kd4 {[%clk 0:01:45.7]} 28... g5 {[%clk
0:01:14.4]} 29. b4 {[%clk 0:01:43.7]} 29... h5 {[%clk 0:01:14]} 30. b5 {[%clk
0:01:42.5]} 30... cxb5 {[%clk 0:01:12.5]} 31. cxb5 {[%clk 0:01:43.4]} 31... Kf5
{[%clk 0:01:10.1]} 32. a4 {[%clk 0:01:43.3]} 32... g4 {[%clk 0:01:10.7]} 33. a5
{[%clk 0:01:43.8]} 33... h4 {[%clk 0:01:11.3]} 34. g3 {[%clk 0:01:43.8]} 1-0

[Event "Late-Titled-Tuesday-Blitz-November-28-2023"]
[Site "Chess.com"]
[Date "2023.11.28"]
[Round "3"]
[White "temiksmozg"]
[Black "SpeedofLight0"]
[Result "1-0"]
[WhiteElo "2607"]
[BlackElo "2877"]
[TimeControl "180+1"]
[EndTime "14:24:54 PST"]
[Termination "temiksmozg won by resignation"]

1. e4 {[%clk 0:03:00.9]} 1... e5 {[%clk 0:02:57.1]} 2. Nf3 {[%clk 0:03:01.3]}
2... d6 {[%clk 0:02:56.9]} 3. d4 {[%clk 0:02:58.2]} 3... exd4 {[%clk 0:02:57.8]}
4. Nxd4 {[%clk 0:02:58.8]} 4... Nf6 {[%clk 0:02:58.2]} 5. Nc3 {[%clk 0:02:57.7]}
5... g6 {[%clk 0:02:58.8]} 6. Bf4 {[%clk 0:02:47.7]} 6... Bg7 {[%clk 0:02:58.7]}
7. Qd2 {[%clk 0:02:45.3]} 7... d5 {[%clk 0:02:57.6]} 8. Ndb5 {[%clk 0:02:15.2]}
8... Na6 {[%clk 0:02:57.1]} 9. exd5 {[%clk 0:02:07.3]} 9... O-O {[%clk 0:02:57]}
10. O-O-O {[%clk 0:02:05.7]} 10... Bf5 {[%clk 0:02:55.8]} 11. Bd3 {[%clk
0:01:59.1]} 11... Qd7 {[%clk 0:02:51.1]} 12. Bxf5 {[%clk 0:01:47.4]} 12... Qxf5
{[%clk 0:02:52]} 13. Nxc7 {[%clk 0:01:47.3]} 13... Nxc7 {[%clk 0:02:52.3]} 14.
Bxc7 {[%clk 0:01:47.9]} 14... Ng4 {[%clk 0:02:53]} 15. f4 {[%clk 0:01:31.7]}
15... Bxc3 {[%clk 0:02:48.5]} 16. bxc3 {[%clk 0:01:15.6]} 16... Nf6 {[%clk
0:02:47]} 17. Rhe1 {[%clk 0:01:09.1]} 17... Rfe8 {[%clk 0:02:43.4]} 18. d6
{[%clk 0:01:03.4]} 18... Nd7 {[%clk 0:02:41]} 19. Qd4 {[%clk 0:00:56.5]} 19...
Qb5 {[%clk 0:02:33.8]} 20. Re7 {[%clk 0:00:50]} 20... Nc5 {[%clk 0:02:13.7]} 21.
Rxe8+ {[%clk 0:00:39]} 21... Rxe8 {[%clk 0:02:11.2]} 22. d7 {[%clk 0:00:39.4]}
22... Ne6 {[%clk 0:01:41.1]} 23. dxe8=Q+ {[%clk 0:00:37.9]} 23... Qxe8 {[%clk
0:01:42]} 24. Qd8 {[%clk 0:00:36.1]} 24... Nxd8 {[%clk 0:01:39.3]} 25. Rxd8
{[%clk 0:00:37]} 25... Kf8 {[%clk 0:01:39.8]} 26. Bd6+ {[%clk 0:00:36.6]} 1-0

[Event "Late-Titled-Tuesday-Blitz-November-28-2023"]
[Site "Chess.com"]
[Date "2023.11.28"]
[Round "3"]
[White "Hirna2005"]
[Black "WindWhistler11"]
[Result "1-0"]
[WhiteElo "2348"]
[BlackElo "2544"]
[TimeControl "180+1"]
[EndTime "14:25:01 PST"]
[Termination "Hirna2005 won by resignation"]

1. e4 {[%clk 0:03:00.9]} 1... e6 {[%clk 0:02:56.9]} 2. d4 {[%clk 0:03:00.6]}
2... d5 {[%clk 0:02:55.4]} 3. e5 {[%clk 0:03:01.3]} 3... c5 {[%clk 0:02:54.1]}
4. c3 {[%clk 0:03:01.9]} 4... Nc6 {[%clk 0:02:52.5]} 5. Be3 {[%clk 0:03:01.9]}
5... Bd7 {[%clk 0:02:51.8]} 6. Nf3 {[%clk 0:03:01.4]} 6... b6 {[%clk 0:02:45.7]}
7. Qd2 {[%clk 0:02:56.1]} 7... Nh6 {[%clk 0:02:42.3]} 8. Bd3 {[%clk 0:02:53.9]}
8... Nf5 {[%clk 0:02:34.7]} 9. Bxf5 {[%clk 0:02:52.6]} 9... exf5 {[%clk
0:02:34.3]} 10. dxc5 {[%clk 0:02:52.8]} 10... bxc5 {[%clk 0:02:22.6]} 11. Qxd5
{[%clk 0:02:52.6]} 11... Qb6 {[%clk 0:02:23.3]} 12. Qd2 {[%clk 0:02:47.3]} 12...
Na5 {[%clk 0:02:19.6]} 13. Na3 {[%clk 0:02:44.2]} 13... Bc6 {[%clk 0:02:12]} 14.
O-O {[%clk 0:02:38.2]} 14... Be4 {[%clk 0:01:58.6]} 15. b4 {[%clk 0:02:34.7]}
15... Qg6 {[%clk 0:01:52.8]} 16. Nh4 {[%clk 0:02:17.3]} 16... Qg4 {[%clk
0:01:46.6]} 17. f3 {[%clk 0:02:16.1]} 17... Qxh4 {[%clk 0:01:45.4]} 18. fxe4
{[%clk 0:02:16.2]} 18... cxb4 {[%clk 0:01:31.3]} 19. cxb4 {[%clk 0:02:13.7]}
19... Be7 {[%clk 0:01:22.4]} 20. Rf4 {[%clk 0:02:07.9]} 20... Qh6 {[%clk
0:01:13.4]} 21. Nb5 {[%clk 0:01:48.8]} 21... Qc6 {[%clk 0:01:03]} 22. Nd4 {[%clk
0:01:43.6]} 1-0

[Event "Late-Titled-Tuesday-Blitz-November-28-2023"]
[Site "Chess.com"]
[Date "2023.11.28"]
[Round "3"]
[White "GAO"]
[Black "GiorgianBarbosa"]
[Result "0-1"]
[WhiteElo "2258"]
[BlackElo "2529"]
[TimeControl "180+1"]
[EndTime "14:25:07 PST"]
[Termination "GiorgianBarbosa won by resignation"]

1. e4 {[%clk 0:03:00.9]} 1... c5 {[%clk 0:02:58.3]} 2. Nf3 {[%clk 0:03:00.6]}
2... g6 {[%clk 0:02:56.2]} 3. d4 {[%clk 0:02:54.3]} 3... cxd4 {[%clk 0:02:57.1]}
4. Nxd4 {[%clk 0:02:54.4]} 4... Bg7 {[%clk 0:02:57.5]} 5. c4 {[%clk 0:02:54.9]}
5... Nc6 {[%clk 0:02:58.1]} 6. Be3 {[%clk 0:02:54]} 6... Nf6 {[%clk 0:02:58]} 7.
Nc3 {[%clk 0:02:53.9]} 7... O-O {[%clk 0:02:57.1]} 8. Be2 {[%clk 0:02:53.4]}
8... Nxd4 {[%clk 0:02:57.2]} 9. Bxd4 {[%clk 0:02:53.1]} 9... d6 {[%clk
0:02:57.6]} 10. O-O {[%clk 0:02:51.6]} 10... Bd7 {[%clk 0:02:57.2]} 11. b3
{[%clk 0:02:49]} 11... Bc6 {[%clk 0:02:57]} 12. f3 {[%clk 0:02:47.7]} 12... Nd7
{[%clk 0:02:55.9]} 13. Bxg7 {[%clk 0:02:47]} 13... Kxg7 {[%clk 0:02:56.8]} 14.
Qd4+ {[%clk 0:02:46.8]} 14... Kg8 {[%clk 0:02:56.2]} 15. Rfd1 {[%clk 0:02:46.6]}
15... a5 {[%clk 0:02:54.9]} 16. Rac1 {[%clk 0:02:46.5]} 16... Qc7 {[%clk
0:02:48.4]} 17. g3 {[%clk 0:02:37.3]} 17... b6 {[%clk 0:02:45.7]} 18. Kg2 {[%clk
0:02:29.4]} 18... Nc5 {[%clk 0:02:45.1]} 19. Nd5 {[%clk 0:02:27.1]} 19... Qb7
{[%clk 0:02:37.9]} 20. Qe3 {[%clk 0:02:20.6]} 20... Bxd5 {[%clk 0:02:33.3]} 21.
exd5 {[%clk 0:02:19.9]} 21... Rae8 {[%clk 0:02:19.8]} 22. Bf1 {[%clk 0:01:49.2]}
22... e5 {[%clk 0:02:12.4]} 23. h4 {[%clk 0:01:41.1]} 23... f5 {[%clk
0:02:10.2]} 24. h5 {[%clk 0:01:35.7]} 24... f4 {[%clk 0:02:09.7]} 25. Qd2 {[%clk
0:01:35.1]} 25... fxg3 {[%clk 0:02:03.5]} 26. hxg6 {[%clk 0:01:33.1]} 26... Rf4
{[%clk 0:01:59.6]} 27. gxh7+ {[%clk 0:01:30.3]} 27... Qxh7 {[%clk 0:02:00.5]}
28. Kxg3 {[%clk 0:01:25.9]} 28... Kf7 {[%clk 0:01:52]} 29. Bd3 {[%clk
0:00:53.1]} 29... Qh4+ {[%clk 0:01:35.1]} 30. Kg2 {[%clk 0:00:51.1]} 30... Rg8+
{[%clk 0:01:34]} 31. Kf1 {[%clk 0:00:48.9]} 31... Rxf3+ {[%clk 0:01:28.9]} 0-1

[Event "Late-Titled-Tuesday-Blitz-November-28-2023"]
[Site "Chess.com"]
[Date "2023.11.28"]
[Round "3"]
[White "ckgchess"]
[Black "ArtemDyachuk"]
[Result "1-0"]
[WhiteElo "2860"]
[BlackElo "2560"]
[TimeControl "180+1"]
[EndTime "14:25:18 PST"]
[Termination "ckgchess won by checkmate"]

1. e4 {[%clk 0:03:00.9]} 1... e5 {[%clk 0:02:58.8]} 2. Nf3 {[%clk 0:03:00.7]}
2... Nf6 {[%clk 0:02:54.6]} 3. Bc4 {[%clk 0:03:00.7]} 3... Nxe4 {[%clk
0:02:43.6]} 4. Nc3 {[%clk 0:03:00.6]} 4... Nf6 {[%clk 0:02:32.7]} 5. Nxe5 {[%clk
0:02:59.6]} 5... d5 {[%clk 0:02:33.2]} 6. Bb3 {[%clk 0:02:59.7]} 6... Bd6 {[%clk
0:02:24.2]} 7. d4 {[%clk 0:02:59.4]} 7... c6 {[%clk 0:02:20.3]} 8. O-O {[%clk
0:02:58.3]} 8... O-O {[%clk 0:02:20]} 9. Bg5 {[%clk 0:02:55.7]} 9... h6 {[%clk
0:02:14]} 10. Bh4 {[%clk 0:02:54.7]} 10... Re8 {[%clk 0:02:03.4]} 11. f4 {[%clk
0:02:53.9]} 11... Nbd7 {[%clk 0:02:01]} 12. Ne2 {[%clk 0:02:50.9]} 12... Nf8
{[%clk 0:01:55.2]} 13. Ng3 {[%clk 0:02:46.4]} 13... Qb6 {[%clk 0:01:35.1]} 14.
c3 {[%clk 0:02:44.9]} 14... N8h7 {[%clk 0:01:09.8]} 15. Kh1 {[%clk 0:02:42.6]}
15... Be6 {[%clk 0:00:43.1]} 16. Bc2 {[%clk 0:02:40.2]} 16... Qxb2 {[%clk
0:00:34.1]} 17. Qd2 {[%clk 0:02:40.5]} 17... Qb6 {[%clk 0:00:34.5]} 18. Rae1
{[%clk 0:02:35.8]} 18... Qc7 {[%clk 0:00:31]} 19. Qd3 {[%clk 0:02:36]} 19... Ne4
{[%clk 0:00:21.6]} 20. f5 {[%clk 0:02:24.9]} 20... Bd7 {[%clk 0:00:12.6]} 21.
Nxe4 {[%clk 0:02:24.8]} 21... dxe4 {[%clk 0:00:09.4]} 22. Rxe4 {[%clk
0:02:23.8]} 22... Ng5 {[%clk 0:00:05.2]} 23. Bxg5 {[%clk 0:02:19.4]} 23... hxg5
{[%clk 0:00:06.1]} 24. f6 {[%clk 0:02:20.1]} 24... g6 {[%clk 0:00:06.4]} 25.
Nxg6 {[%clk 0:02:16.9]} 25... fxg6 {[%clk 0:00:07.3]} 26. f7+ {[%clk 0:02:17.2]}
26... Kg7 {[%clk 0:00:06.8]} 27. Rxe8 {[%clk 0:02:16.3]} 27... Bf5 {[%clk
0:00:02.6]} 28. Rxf5 {[%clk 0:02:09.9]} 28... Rxe8 {[%clk 0:00:02.7]} 29. fxe8=Q
{[%clk 0:02:10]} 29... Bxh2 {[%clk 0:00:01.3]} 30. Qf8+ {[%clk 0:02:08.8]} 30...
Kh7 {[%clk 0:00:01.5]} 31. Rf7+ {[%clk 0:02:09.7]} 31... Qxf7 {[%clk 0:00:01.5]}
32. Qxf7+ {[%clk 0:02:10.6]} 32... Kh8 {[%clk 0:00:02.3]} 33. Qdxg6 {[%clk
0:02:10.4]} 33... Be5 {[%clk 0:00:02]} 34. Qgh7# {[%clk 0:02:11.3]} 1-0

[Event "Late-Titled-Tuesday-Blitz-November-28-2023"]
[Site "Chess.com"]
[Date "2023.11.28"]
[Round "3"]
[White "Jahonas"]
[Black "Tomytoteph"]
[Result "1-0"]
[WhiteElo "2414"]
[BlackElo "2612"]
[TimeControl "180+1"]
[EndTime "14:25:22 PST"]
[Termination "Jahonas won by checkmate"]

1. e4 {[%clk 0:03:00.9]} 1... c5 {[%clk 0:02:48.3]} 2. Nf3 {[%clk 0:02:59.5]}
2... g6 {[%clk 0:02:48.7]} 3. d4 {[%clk 0:02:59.6]} 3... cxd4 {[%clk 0:02:49.6]}
4. Nxd4 {[%clk 0:02:59.8]} 4... Bg7 {[%clk 0:02:50]} 5. c3 {[%clk 0:03:00.1]}
5... Nc6 {[%clk 0:02:50.4]} 6. Nxc6 {[%clk 0:02:59.8]} 6... bxc6 {[%clk
0:02:50.3]} 7. Bc4 {[%clk 0:02:58.4]} 7... Bb7 {[%clk 0:02:48.5]} 8. O-O {[%clk
0:02:58]} 8... d5 {[%clk 0:02:47.9]} 9. Bd3 {[%clk 0:02:55.4]} 9... Nf6 {[%clk
0:02:46.7]} 10. e5 {[%clk 0:02:47.3]} 10... Nd7 {[%clk 0:02:46.2]} 11. f4 {[%clk
0:02:41.7]} 11... O-O {[%clk 0:02:45.8]} 12. Nd2 {[%clk 0:02:38.9]} 12... e6
{[%clk 0:02:46.1]} 13. Nf3 {[%clk 0:02:38.4]} 13... f6 {[%clk 0:02:45.9]} 14.
Qe2 {[%clk 0:02:37.4]} 14... fxe5 {[%clk 0:02:45]} 15. fxe5 {[%clk 0:02:36.7]}
15... Qc7 {[%clk 0:02:45]} 16. Re1 {[%clk 0:02:33.7]} 16... Rxf3 {[%clk
0:02:29.9]} 17. Qxf3 {[%clk 0:02:32.8]} 17... Nxe5 {[%clk 0:02:29.8]} 18. Qg3
{[%clk 0:02:26.3]} 18... Qb6+ {[%clk 0:02:22.9]} 19. Kh1 {[%clk 0:02:14.6]}
19... Nxd3 {[%clk 0:02:21.7]} 20. Qxd3 {[%clk 0:02:14.4]} 20... e5 {[%clk
0:02:22.1]} 21. Be3 {[%clk 0:02:08.3]} 21... Qc7 {[%clk 0:02:20.5]} 22. Bc5
{[%clk 0:02:06.9]} 22... e4 {[%clk 0:02:18.8]} 23. Qe3 {[%clk 0:02:05.6]} 23...
Be5 {[%clk 0:02:15.2]} 24. h3 {[%clk 0:01:58.3]} 24... Ba6 {[%clk 0:02:15.1]}
25. Bd4 {[%clk 0:01:54.4]} 25... Bf4 {[%clk 0:02:15]} 26. Qf2 {[%clk 0:01:46.5]}
26... Bg3 {[%clk 0:02:14.4]} 27. Qf6 {[%clk 0:01:45.8]} 27... Re8 {[%clk
0:01:58.2]} 28. Rf1 {[%clk 0:01:39.7]} 28... Bxf1 {[%clk 0:01:33]} 29. Qh8+
{[%clk 0:01:34.4]} 29... Kf7 {[%clk 0:01:33.2]} 30. Rxf1+ {[%clk 0:01:28.6]}
30... Ke7 {[%clk 0:01:32.8]} 31. Qxh7+ {[%clk 0:01:14.2]} 31... Kd8 {[%clk
0:01:32.7]} 32. Rf7 {[%clk 0:01:04.9]} 32... Qd6 {[%clk 0:01:31.1]} 33. Rxa7
{[%clk 0:00:55]} 33... Re7 {[%clk 0:01:30.8]} 34. Bb6+ {[%clk 0:00:45.3]} 34...
Ke8 {[%clk 0:01:25.4]} 35. Qg8# {[%clk 0:00:44.2]} 1-0

[Event "Late-Titled-Tuesday-Blitz-November-28-2023"]
[Site "Chess.com"]
[Date "2023.11.28"]
[Round "3"]
[White "2346PL"]
[Black "Likvidator228"]
[Result "1/2-1/2"]
[WhiteElo "2366"]
[BlackElo "2570"]
[TimeControl "180+1"]
[EndTime "14:25:29 PST"]
[Termination "Game drawn by agreement"]

1. d4 {[%clk 0:02:57.7]} 1... g6 {[%clk 0:02:59.4]} 2. e4 {[%clk 0:02:57.4]}
2... Bg7 {[%clk 0:02:59.5]} 3. Nc3 {[%clk 0:02:58.1]} 3... d6 {[%clk 0:02:58.4]}
4. Bg5 {[%clk 0:02:57.1]} 4... h6 {[%clk 0:02:58.2]} 5. Bh4 {[%clk 0:02:56.1]}
5... Nc6 {[%clk 0:02:56.1]} 6. Nge2 {[%clk 0:02:54.8]} 6... g5 {[%clk
0:02:56.4]} 7. Bg3 {[%clk 0:02:54.6]} 7... e5 {[%clk 0:02:57.1]} 8. dxe5 {[%clk
0:02:50.6]} 8... dxe5 {[%clk 0:02:44.3]} 9. Qxd8+ {[%clk 0:02:50.2]} 9... Nxd8
{[%clk 0:02:45.2]} 10. Nd5 {[%clk 0:02:37.6]} 10... Ne6 {[%clk 0:02:44.7]} 11.
O-O-O {[%clk 0:02:33.3]} 11... c6 {[%clk 0:02:44.9]} 12. Ne3 {[%clk 0:02:33.4]}
12... Ne7 {[%clk 0:02:37.6]} 13. f3 {[%clk 0:02:28.8]} 13... Nf4 {[%clk
0:02:35.5]} 14. Nc4 {[%clk 0:02:20.4]} 14... Neg6 {[%clk 0:02:24.9]} 15. Nd6+
{[%clk 0:02:18.1]} 15... Ke7 {[%clk 0:02:24.8]} 16. Nxc8+ {[%clk 0:02:18]} 16...
Raxc8 {[%clk 0:02:24.4]} 17. Nxf4 {[%clk 0:02:17]} 17... exf4 {[%clk 0:02:23.8]}
18. Bf2 {[%clk 0:02:17.3]} 18... b6 {[%clk 0:02:21.5]} 19. a4 {[%clk 0:02:10]}
19... Rhd8 {[%clk 0:02:18.1]} 20. Ba6 {[%clk 0:02:09.1]} 20... Rxd1+ {[%clk
0:02:13.7]} 21. Rxd1 {[%clk 0:02:08.1]} 21... Rd8 {[%clk 0:02:14]} 22. a5 {[%clk
0:02:04.6]} 22... Rxd1+ {[%clk 0:02:11.3]} 23. Kxd1 {[%clk 0:02:03.9]} 23...
Bxb2 {[%clk 0:02:07.2]} 24. axb6 {[%clk 0:02:03.3]} 24... axb6 {[%clk
0:02:07.3]} 25. Bxb6 {[%clk 0:02:03.9]} 25... Nh4 {[%clk 0:02:01.9]} 26. Bf1
{[%clk 0:02:01.7]} 26... Bg7 {[%clk 0:01:56.4]} 27. Bc5+ {[%clk 0:01:58.6]}
27... Ke6 {[%clk 0:01:53.7]} 28. Ke1 {[%clk 0:01:48.7]} 28... f5 {[%clk
0:01:53.2]} 29. Bc4+ {[%clk 0:01:34.4]} 29... Kd7 {[%clk 0:01:53]} 30. Kf2
{[%clk 0:01:29.6]} 30... fxe4 {[%clk 0:01:52]} 31. fxe4 {[%clk 0:01:30.3]} 31...
Ng6 {[%clk 0:01:47.6]} 32. Be2 {[%clk 0:01:20.5]} 32... Ne5 {[%clk 0:01:45.1]}
33. g3 {[%clk 0:01:15.4]} 33... fxg3+ {[%clk 0:01:44.8]} 34. hxg3 {[%clk
0:01:15.4]} 34... Ke6 {[%clk 0:01:36.2]} 35. Bd4 {[%clk 0:01:10.7]} 35... Bf8
{[%clk 0:01:29.5]} 36. Ke3 {[%clk 0:01:05.7]} 36... Bd6 {[%clk 0:01:22]} 37.
Bxe5 {[%clk 0:00:56.3]} 37... Kxe5 {[%clk 0:01:21.4]} 38. g4 {[%clk 0:00:54.8]}
38... Bc5+ {[%clk 0:01:21.2]} 39. Kd3 {[%clk 0:00:53.8]} 1/2-1/2

[Event "Late-Titled-Tuesday-Blitz-November-28-2023"]
[Site "Chess.com"]
[Date "2023.11.28"]
[Round "3"]
[White "AsaHoffmann"]
[Black "morte-negra"]
[Result "1-0"]
[WhiteElo "2343"]
[BlackElo "2019"]
[TimeControl "180+1"]
[EndTime "14:25:30 PST"]
[Termination "AsaHoffmann won by resignation"]

1. d4 {[%clk 0:02:57]} 1... Nf6 {[%clk 0:02:59]} 2. Bg5 {[%clk 0:02:54.7]} 2...
e5 {[%clk 0:02:55.7]} 3. dxe5 {[%clk 0:02:52.6]} 3... h6 {[%clk 0:02:53.9]} 4.
exf6 {[%clk 0:02:46.4]} 4... hxg5 {[%clk 0:02:54]} 5. fxg7 {[%clk 0:02:44.8]}
5... Bxg7 {[%clk 0:02:54.6]} 6. Nc3 {[%clk 0:02:41.2]} 6... Nc6 {[%clk 0:02:51]}
7. e3 {[%clk 0:02:40.8]} 7... a6 {[%clk 0:02:49]} 8. Bc4 {[%clk 0:02:39.3]} 8...
Ne5 {[%clk 0:02:44.7]} 9. Bb3 {[%clk 0:02:38.3]} 9... c6 {[%clk 0:02:43.6]} 10.
Nf3 {[%clk 0:02:37]} 10... d5 {[%clk 0:02:42.8]} 11. Nxe5 {[%clk 0:02:30.9]}
11... Bxe5 {[%clk 0:02:42.3]} 12. h3 {[%clk 0:02:30.4]} 12... Qc7 {[%clk
0:02:38.4]} 13. Qd3 {[%clk 0:02:28.5]} 13... b5 {[%clk 0:02:28]} 14. O-O-O
{[%clk 0:02:24.5]} 14... a5 {[%clk 0:02:27.3]} 15. a4 {[%clk 0:01:54.8]} 15...
b4 {[%clk 0:02:19.3]} 16. Ne2 {[%clk 0:01:53.9]} 16... Ba6 {[%clk 0:01:56.9]}
17. Qd2 {[%clk 0:01:52.9]} 17... O-O-O {[%clk 0:01:25.1]} 18. Kb1 {[%clk
0:01:49.6]} 18... Rh4 {[%clk 0:01:03.6]} 19. Nd4 {[%clk 0:01:44.7]} 19... Bxd4
{[%clk 0:00:43.4]} 20. exd4 {[%clk 0:01:43.4]} 20... Rf4 {[%clk 0:00:33.7]} 21.
f3 {[%clk 0:01:39.9]} 21... Qa7 {[%clk 0:00:29]} 22. Rhe1 {[%clk 0:01:32.4]}
22... Kd7 {[%clk 0:00:28.2]} 23. g3 {[%clk 0:01:28.1]} 23... Rxf3 {[%clk
0:00:24]} 24. Qxg5 {[%clk 0:01:27.4]} 24... Kc8 {[%clk 0:00:20.5]} 25. Qg4+
{[%clk 0:01:24.9]} 1-0